fUST/lending_fUST_20251010
["ID","MTS","AMOUNT","RATE_DAILY","PERIOD"]
[390493238,1760063450031,-500.0,0.00016986,2]
[390493239,1760063450040,-500.0,0.00016986,2]
[390493240,1760063450048,-500.0,0.00016986,2]
[390493241,1760063450062,-500.0,0.00016986,2]
[390493242,1760063450079,-462.20778594,0.00016986,2]
[390493243,1760063450088,-500.0,0.00016986,2]
[390493244,1760063450097,-500.0,0.00016986,2]
[390493245,1760063450106,-500.0,0.00016986,2]
[390493246,1760063450114,-500.0,0.00016986,2]
[390493247,1760063450123,-500.0,0.00016986,2]
[390493248,1760063450132,-1270.03,0.00016986,2]
[390493249,1760063450141,-508.8,0.00016986,2]
[390493250,1760063450150,-500.0,0.00016986,2]
[390493251,1760063450159,-500.0,0.00016986,2]
[390493252,1760063450168,-151.0,0.00016986,2]
[390493253,1760063450176,-500.0,0.00016986,2]
[390493254,1760063450185,-1408.2,0.00016986,2]
[390493255,1760063450194,-500.0,0.00016986,2]
[390493256,1760063450203,-500.0,0.00016986,2]
[390493257,1760063450211,-500.0,0.00016986,2]
[390493258,1760063450220,-500.0,0.00016986,2]
[390493259,1760063450229,-500.0,0.00016986,2]
[390493260,1760063450238,-500.0,0.00016986,2]
[390493261,1760063450247,-500.0,0.00016986,2]
[390493262,1760063450256,-500.0,0.00016986,2]
[390493263,1760063450265,-500.0,0.00016986,2]
[390493264,1760063450273,-500.0,0.00016986,2]
[390493265,1760063450282,-500.0,0.00016986,2]
[390493266,1760063450291,-500.0,0.00016986,2]
[390493267,1760063450301,-500.0,0.00016986,2]
[390493268,1760063450310,-500.0,0.00016986,2]
[390493269,1760063450319,-151.0,0.00016986,2]
[390493270,1760063450329,-151.0,0.00016986,2]
[390493271,1760063450338,-500.0,0.00016986,2]
[390493272,1760063450348,-500.0,0.00016986,2]
[390493273,1760063450361,-151.0,0.00016986,2]
[390493274,1760063450371,-500.0,0.00016986,2]
[390493275,1760063450382,-151.0,0.00016986,2]
[390493276,1760063450391,-1278.82,0.00016986,2]
[390493277,1760063450400,-500.0,0.00016986,2]
[390493278,1760063450410,-500.0,0.00016986,2]
[390493279,1760063450420,-500.0,0.00016986,2]
[390493280,1760063450429,-500.0,0.00016986,2]
[390493281,1760063450438,-500.0,0.00016986,2]
[390493282,1760063450448,-500.0,0.00016986,2]
[390493283,1760063450457,-500.0,0.00016986,2]
[390493284,1760063450466,-500.0,0.00016986,2]
[390493285,1760063450477,-708.12,0.00016986,2]
[390493286,1760063450486,-500.0,0.00016986,2]
[390493287,1760063450496,-500.0,0.00016986,2]
[390493288,1760063450505,-500.0,0.00016986,2]
[390493289,1760063450518,-500.0,0.00016986,2]
[390493290,1760063450528,-500.0,0.00016986,2]
[390493291,1760063450539,-500.0,0.00016986,2]
[390493292,1760063450549,-500.0,0.00016986,2]
[390493293,1760063450560,-1252.25,0.00016986,2]
[390493294,1760063450569,-500.0,0.00016986,2]
[390493295,1760063450579,-500.0,0.00016986,2]
[390493296,1760063450590,-500.0,0.00016986,2]
[390493297,1760063450602,-500.0,0.00016986,2]
[390493298,1760063450612,-500.0,0.00016986,2]
[390493299,1760063450621,-151.0,0.00016986,2]
[390493300,1760063450632,-151.0,0.00016986,2]
[390493301,1760063450641,-500.0,0.00016986,2]
[390493302,1760063450651,-500.0,0.00016986,2]
[390493303,1760063450660,-501.48482106,0.00016986,2]
[390493304,1760063450671,-500.0,0.00016986,2]
[390493305,1760063450680,-500.0,0.00016986,2]
[390493306,1760063450689,-424.365761,0.00016986,2]
[390493307,1760063450698,-500.0,0.00016986,2]
[390493308,1760063450707,-1134.46,0.00016986,2]
[390493309,1760063450717,-500.0,0.00016986,2]
[390493310,1760063450726,-500.0,0.00016986,2]
[390493311,1760063450736,-219.474089,0.00016986,2]
[390493312,1760063450745,-500.0,0.00016986,2]
[390493313,1760063450754,-500.0,0.00016986,2]
[390493314,1760063450764,-500.0,0.00016986,2]
[390493315,1760063450773,-500.0,0.00016986,2]
[390493316,1760063450782,-500.0,0.00016986,2]
[390493317,1760063450792,-500.0,0.00016986,2]
[390493318,1760063450801,-500.0,0.00016986,2]
[390493319,1760063450811,-500.0,0.00016986,2]
[390493320,1760063450820,-500.0,0.00016986,2]
[390493321,1760063450830,-151.0,0.00016986,2]
[390493322,1760063450840,-500.0,0.00016986,2]
[390493323,1760063450849,-1032.27,0.00016986,2]
[390493324,1760063450859,-273.399152,0.00016986,2]
[390493325,1760063450869,-500.0,0.00016986,2]
[390493326,1760063450879,-500.0,0.00016986,2]
[390493327,1760063450888,-1150.49,0.00016986,2]
[390493328,1760063450897,-151.0,0.00016986,2]
[390493330,1760063450907,-989.37,0.00016986,2]
[390493332,1760063450916,-151.0,0.00016986,2]
[390493334,1760063450925,-500.0,0.00016986,2]
[390493336,1760063450935,-500.0,0.00016986,2]
[390493338,1760063450944,-500.0,0.00016986,2]
[390493340,1760063450954,-500.0,0.00016986,2]
[390493342,1760063450963,-500.0,0.00016986,2]
[390493344,1760063450972,-508.79,0.00016986,2]
[390493346,1760063450981,-500.0,0.00016986,2]
[390493348,1760063450990,-500.0,0.00016986,2]
[390493350,1760063451008,-500.0,0.00016986,2]
[390493352,1760063451018,-500.0,0.00016986,2]
[390493354,1760063451028,-500.0,0.00016986,2]
[390493356,1760063451037,-500.0,0.00016986,2]
[390493358,1760063451046,-500.0,0.00016986,2]
[390493360,1760063451056,-500.0,0.00016986,2]
[390493362,1760063451073,-500.0,0.00016986,2]
[390493364,1760063451083,-500.0,0.00016986,2]
[390493366,1760063451092,-500.0,0.00016986,2]
[390493368,1760063451101,-500.0,0.00016986,2]
[390493370,1760063451110,-500.0,0.00016986,2]
[390493372,1760063451119,-500.0,0.00016986,2]
[390493374,1760063451130,-500.0,0.00016986,2]
[390493376,1760063451140,-500.0,0.00016986,2]
[390493378,1760063451149,-500.0,0.00016986,2]
[390493380,1760063451158,-500.0,0.00016986,2]
[390493382,1760063451167,-500.0,0.00016986,2]
[390493384,1760063451176,-500.0,0.00016986,2]
[390493386,1760063451185,-500.0,0.00016986,2]
[390493388,1760063451194,-152.275113,0.00016986,2]
[390493390,1760063451203,-500.0,0.00016986,2]
[390493392,1760063451212,-500.0,0.00016986,2]
[390493394,1760063451221,-500.0,0.00016986,2]
[390493396,1760063451231,-2096.6,0.00016986,2]
[390493398,1760063451241,-500.0,0.00016986,2]
[390493400,1760063451251,-500.0,0.00016986,2]
[390493402,1760063451263,-500.0,0.00016986,2]
[390493404,1760063451272,-151.0,0.00016986,2]
[390493406,1760063451281,-500.0,0.00016986,2]
[390493408,1760063451291,-151.0,0.00016986,2]
[390493410,1760063451301,-500.0,0.00016986,2]
[390493412,1760063451310,-500.0,0.00016986,2]
[390493414,1760063451319,-500.0,0.00016986,2]
[390493417,1760063451329,-1265.42,0.00016986,2]
[390493419,1760063451339,-500.0,0.00016986,2]
[390493420,1760063451348,-3450.9,0.00016986,2]
[390493423,1760063451357,-222.46611655,0.00016986,2]
[390493424,1760063451367,-4894.28,0.00016986,2]
[390493427,1760063451376,-6020.11,0.00016986,2]
[390493428,1760063451385,-500.0,0.00016986,2]
[390493430,1760063451394,-500.0,0.00016986,2]
[390493432,1760063451403,-901.89,0.00016986,2]
[390493434,1760063451414,-500.0,0.00016986,2]
[390493436,1760063451424,-500.0,0.00016986,2]
[390493439,1760063451435,-500.0,0.00016986,2]
[390493441,1760063451445,-500.0,0.00016986,2]
[390493443,1760063451455,-500.0,0.00016986,2]
[390493444,1760063451464,-880.12,0.00016986,2]
[390493447,1760063451474,-500.0,0.00016986,2]
[390493449,1760063451483,-500.0,0.00016986,2]
[390493451,1760063451492,-818.07,0.00016986,2]
[390493453,1760063451502,-960.98,0.00016986,2]
[390493455,1760063451512,-7861.04,0.00016986,2]
[390493457,1760063451524,-500.0,0.00016986,2]
[390493459,1760063451534,-502.97102629,0.00016986,2]
[390493461,1760063451543,-500.0,0.00016986,2]
[390493463,1760063451552,-500.0,0.00016986,2]
[390493465,1760063451562,-742.62,0.00016986,2]
[390493467,1760063451571,-1041.4,0.00016986,2]
[390493469,1760063451581,-500.0,0.00016986,2]
[390493470,1760063451592,-500.0,0.00016986,2]
[390493473,1760063451602,-500.0,0.00016986,2]
[390493474,1760063451612,-1493.48,0.00016986,2]
[390493476,1760063451625,-500.0,0.00016986,2]
[390493478,1760063451634,-500.0,0.00016986,2]
[390493481,1760063451644,-500.0,0.00016986,2]
[390493482,1760063451655,-501.4714528,0.00016986,2]
[390493484,1760063451664,-500.0,0.00016986,2]
[390493487,1760063451675,-500.0,0.00016986,2]
[390493488,1760063451684,-500.0,0.00016986,2]
[390493490,1760063451693,-260.264066,0.00016986,2]
[390493492,1760063451703,-260.264066,0.00016986,2]
[390493494,1760063451713,-260.264066,0.00016986,2]
[390493496,1760063451722,-260.264066,0.00016986,2]
[390493498,1760063451732,-260.264066,0.00016986,2]
[390493500,1760063451741,-260.264066,0.00016986,2]
[390493502,1760063451750,-260.264066,0.00016986,2]
[390493504,1760063451759,-81.15247854,0.00016986,2]
[390493576,1760063452414,-108.32605742,0.00016338,2]
[390494485,1760063584651,186.552976,0.00018975,20]
[390494490,1760063621110,360.710896,0.00018975,20]
[390494502,1760064050074,535.09,0.00028767,120]
[390494508,1760064220049,401.934999,0.00018975,20]
[390494509,1760064228070,207.873316,0.00018975,20]
[390494510,1760064277855,2028.52,0.00024,30]
[390494511,1760064351842,226.3233033,0.00015386,2]
[390494512,1760064351863,439.6766967,0.00015386,2]
[390494519,1760064541344,294.159514,0.00015297,2]
[390494525,1760064632487,-300.0,0.00015631,2]
[390494526,1760064632497,-1110.72508389,0.00015631,2]
[390494527,1760064632508,-89.27491611,0.00015631,2]
[390494529,1760064632518,-677.02347282,0.00015632,2]
[390494530,1760064632528,-2708.09389126,0.00015632,2]
[390494532,1760064632537,-6087.11804408,0.00015632,2]
[390494535,1760064632547,-360.32467516,0.00015632,2]
[390494536,1760064632557,-1439.85740193,0.00015632,2]
[390494537,1760064632566,-44785.22079855,0.0001599,2]
[390494538,1760064632576,-160.67073423,0.00016137,2]
[390494539,1760064632586,-855.66683214,0.00016163,2]
[390494540,1760064632595,-437.56364551,0.00016237,2]
[390494542,1760064632604,-1010.02,0.000163,2]
[390494544,1760064632614,-12717.11845694,0.00016338,2]
[390494546,1760064632623,-500.0,0.00016438,2]
[390494547,1760064632632,-502.1824498,0.00016438,2]
[390494549,1760064632641,-3680.47,0.00016438,2]
[390494552,1760064632651,-1000.0,0.00016438,2]
[390494554,1760064632660,-500.0,0.00016438,2]
[390494556,1760064632669,-500.0,0.00016438,2]
[390494558,1760064632681,-498.28286323,0.00016438,2]
[390494559,1760064632690,-500.0,0.00016438,2]
[390494561,1760064632700,-500.0,0.00016438,2]
[390494563,1760064632709,-501.35374469,0.00016438,2]
[390494565,1760064632718,-500.71369986,0.00016438,2]
[390494567,1760064632727,-502.37268043,0.00016438,2]
[390494568,1760064632736,-500.0,0.00016438,2]
[390494569,1760064632745,-500.0,0.00016438,2]
[390494570,1760064632754,-500.0,0.00016438,2]
[390494571,1760064632763,-500.0,0.00016438,2]
[390494572,1760064632772,-500.0,0.00016438,2]
[390494573,1760064632781,-502.12305727,0.00016438,2]
[390494574,1760064632790,-500.0,0.00016438,2]
[390494575,1760064632799,-669.94,0.00016438,2]
[390494576,1760064632809,-500.0,0.00016438,2]
[390494577,1760064632817,-1200.08,0.00016438,2]
[390494578,1760064632826,-500.0,0.00016438,2]
[390494579,1760064632835,-500.0,0.00016438,2]
[390494580,1760064632843,-500.0,0.00016438,2]
[390494581,1760064632855,-500.0,0.00016438,2]
[390494582,1760064632865,-500.0,0.00016438,2]
[390494583,1760064632874,-500.0,0.00016438,2]
[390494584,1760064632883,-500.0,0.00016438,2]
[390494585,1760064632893,-500.0,0.00016438,2]
[390494586,1760064632902,-500.0,0.00016438,2]
[390494587,1760064632910,-500.0,0.00016438,2]
[390494588,1760064632920,-500.0,0.00016438,2]
[390494589,1760064632929,-500.0,0.00016438,2]
[390494590,1760064632939,-500.0,0.00016438,2]
[390494591,1760064632948,-500.0,0.00016438,2]
[390494592,1760064632957,-500.0,0.00016438,2]
[390494593,1760064632966,-500.0,0.00016438,2]
[390494594,1760064632975,-500.0,0.00016438,2]
[390494596,1760064632984,-500.0,0.00016438,2]
[390494597,1760064632993,-500.0,0.00016438,2]
[390494599,1760064633002,-500.0,0.00016438,2]
[390494601,1760064633011,-635.87018617,0.00016438,2]
[390494603,1760064633020,-500.0,0.00016438,2]
[390494605,1760064633029,-500.0,0.00016438,2]
[390494607,1760064633039,-500.0,0.00016438,2]
[390494609,1760064633047,-502.51814734,0.00016438,2]
[390494611,1760064633057,-500.0,0.00016438,2]
[390494613,1760064633066,-500.0,0.00016438,2]
[390494615,1760064633075,-500.0,0.00016438,2]
[390494617,1760064633084,-500.0,0.00016438,2]
[390494619,1760064633093,-500.0,0.00016438,2]
[390494621,1760064633102,-503.05799804,0.00016438,2]
[390494623,1760064633111,-500.0,0.00016438,2]
[390494625,1760064633120,-500.0,0.00016438,2]
[390494627,1760064633131,-500.0,0.00016438,2]
[390494629,1760064633140,-500.0,0.00016438,2]
[390494631,1760064633150,-500.0,0.00016438,2]
[390494633,1760064633159,-501.56151148,0.00016438,2]
[390494635,1760064633169,-500.0,0.00016438,2]
[390494636,1760064633179,-500.0,0.00016438,2]
[390494639,1760064633190,-500.0,0.00016438,2]
[390494640,1760064633199,-500.0,0.00016438,2]
[390494642,1760064633209,-1225.54,0.00016438,2]
[390494644,1760064633218,-500.0,0.00016438,2]
[390494646,1760064633227,-500.0,0.00016438,2]
[390494648,1760064633237,-1090.34,0.00016438,2]
[390494650,1760064633247,-500.0,0.00016438,2]
[390494652,1760064633257,-500.0,0.00016438,2]
[390494654,1760064633266,-500.0,0.00016438,2]
[390494656,1760064633276,-500.0,0.00016438,2]
[390494658,1760064633286,-500.0,0.00016438,2]
[390494660,1760064633295,-500.0,0.00016438,2]
[390494662,1760064633305,-500.0,0.00016438,2]
[390494664,1760064633314,-500.0,0.00016438,2]
[390494666,1760064633323,-501.04755248,0.00016438,2]
[390494668,1760064633332,-1080.14,0.00016438,2]
[390494670,1760064633341,-906.92,0.00016438,2]
[390494672,1760064633354,-501.29214937,0.00016438,2]
[390494674,1760064633363,-500.0,0.00016438,2]
[390494676,1760064633372,-500.0,0.00016438,2]
[390494678,1760064633381,-500.0,0.00016438,2]
[390494680,1760064633390,-500.0,0.00016438,2]
[390494682,1760064633399,-509.42932232,0.00016438,2]
[390494684,1760064633408,-500.0,0.00016438,2]
[390494686,1760064633418,-500.0,0.00016438,2]
[390494688,1760064633428,-501.68013535,0.00016438,2]
[390494690,1760064633437,-502.25512245,0.00016438,2]
[390494692,1760064633446,-500.0,0.00016438,2]
[390494694,1760064633455,-500.0,0.00016438,2]
[390494697,1760064633465,-500.0,0.00016438,2]
[390494699,1760064633474,-500.58260468,0.00016438,2]
[390494701,1760064633484,-500.0,0.00016438,2]
[390494703,1760064633493,-500.0,0.00016438,2]
[390494705,1760064633503,-500.0,0.00016438,2]
[390494707,1760064633512,-500.4973832,0.00016438,2]
[390494709,1760064633521,-500.0,0.00016438,2]
[390494711,1760064633530,-501.37393964,0.00016438,2]
[390494713,1760064633540,-500.0,0.00016438,2]
[390494715,1760064633549,-500.0,0.00016438,2]
[390494717,1760064633558,-500.0,0.00016438,2]
[390494719,1760064633568,-500.0,0.00016438,2]
[390494721,1760064633577,-500.0,0.00016438,2]
[390494723,1760064633587,-500.0,0.00016438,2]
[390494725,1760064633596,-500.0,0.00016438,2]
[390494727,1760064633605,-500.0,0.00016438,2]
[390494729,1760064633614,-500.0,0.00016438,2]
[390494731,1760064633623,-500.0,0.00016438,2]
[390494732,1760064633632,-500.0,0.00016438,2]
[390494734,1760064633642,-502.5397836,0.00016438,2]
[390494736,1760064633651,-290.55556519,0.00016438,2]
[390494739,1760064633672,-211.46557806,0.00016438,2]
[390494741,1760064633681,-266.5553016,0.00016438,2]
[390494989,1760064638356,-500.0,0.00016432,2]
[390494991,1760064638366,-500.0,0.00016432,2]
[390494993,1760064638375,-500.0,0.00016432,2]
[390494995,1760064638385,-451.5983984,0.00016432,2]
[390494997,1760064638397,-48.4016016,0.00016432,2]
[390495000,1760064638413,-500.0,0.00016432,2]
[390495003,1760064638423,-500.0,0.00016432,2]
[390495005,1760064638432,-500.0,0.00016432,2]
[390495007,1760064638441,-500.0,0.00016432,2]
[390495010,1760064638451,-500.0,0.00016432,2]
[390495012,1760064638461,-500.0,0.00016432,2]
[390495014,1760064638470,-369.03375987,0.00016432,2]
[390495016,1760064638479,-500.0,0.00016432,2]
[390495018,1760064638489,-500.0,0.00016432,2]
[390495020,1760064638499,-500.0,0.00016432,2]
[390495022,1760064638508,-109.07595497,0.00016432,2]
[390495024,1760064638520,-390.92404503,0.00016432,2]
[390495026,1760064638529,-144.02501938,0.00016432,2]
[390495028,1760064638540,-355.97498062,0.00016432,2]
[390495030,1760064638549,-500.0,0.00016432,2]
[390495032,1760064638559,-245.16299683,0.00016432,2]
[390495034,1760064638570,-254.83700317,0.00016432,2]
[390495036,1760064638579,-39.70375698,0.00016432,2]
[390495039,1760064638599,-460.29624302,0.00016432,2]
[390495042,1760064638610,-500.0,0.00016432,2]
[390495043,1760064638619,-256.60098948,0.00016432,2]
[390495265,1760064640315,-243.39901052,0.00016432,2]
[390495268,1760064640325,-500.0,0.00016432,2]
[390495273,1760064640335,-500.0,0.00016432,2]
[390495276,1760064640345,-500.0,0.00016432,2]
[390495278,1760064640355,-500.0,0.00016432,2]
[390495281,1760064640365,-500.0,0.00016432,2]
[390495285,1760064640375,-409.6891273,0.00016432,2]
[390495288,1760064640390,-90.3108727,0.00016432,2]
[390495291,1760064640399,-500.0,0.00016432,2]
[390495294,1760064640409,-500.0,0.00016432,2]
[390495297,1760064640418,-500.0,0.00016432,2]
[390495301,1760064640428,-500.0,0.00016432,2]
[390495304,1760064640437,-386.93946619,0.00016432,2]
[390495308,1760064640448,-113.06053381,0.00016432,2]
[390495312,1760064640458,-500.0,0.00016432,2]
[390495314,1760064640466,-452.93946619,0.00016432,2]
[390495319,1760064640482,-47.06053381,0.00016432,2]
[390495322,1760064640491,-500.0,0.00016432,2]
[390495324,1760064640499,-137.45827136,0.00016432,2]
[390495796,1760064643086,9000.0,0.00015571,2]
[390495826,1760064643350,-362.54172864,0.00016432,2]
[390495828,1760064643359,-500.0,0.00016432,2]
[390495830,1760064643369,-76.21762348,0.00016432,2]
[390496138,1760064646636,-423.78237652,0.00016432,2]
[390496140,1760064646646,-500.0,0.00016432,2]
[390496142,1760064646655,-480.60222075,0.00016432,2]
[390496148,1760064646709,-19.39777925,0.00016432,2]
[390496150,1760064646719,-500.0,0.00016432,2]
[390496153,1760064646728,-162.72497988,0.00016432,2]
[390496155,1760064646737,-234.98147767,0.00016438,2]
[390496157,1760064646747,-510.58,0.00016438,2]
[390496159,1760064646756,-500.0,0.00016438,2]
[390496161,1760064646765,-500.0,0.00016438,2]
[390496164,1760064646774,-500.0,0.00016438,2]
[390496167,1760064646783,-500.0,0.00016438,2]
[390496169,1760064646792,-500.0,0.00016438,2]
[390496171,1760064646801,-149.29668434,0.00016438,2]
[390497041,1760064769503,201.934079,0.00018975,20]
[390497063,1760064818650,390.451142,0.00018975,20]
[390497072,1760064844771,3000.0,0.00024,30]
[390497094,1760064912430,3382.75,0.00028,120]
[390497120,1760065022807,705.850486,0.00013699,2]
[390497121,1760065022833,8.179431,0.00013699,2]
[390497161,1760065370393,196.164533,0.00018975,20]
[390497164,1760065404587,217.07073354,0.00028767,120]
[390497166,1760065417025,379.295395,0.00018975,20]
[390497168,1760065491305,666.66666667,0.00023409,30]
[390497169,1760065491975,666.66666667,0.00023409,30]
[390497170,1760065492850,666.66666667,0.00023409,30]
[390497228,1760065832577,-864.75174126,0.0001589,2]
[390497230,1760065832587,-444.32758482,0.0001589,2]
[390497232,1760065832596,-160.6707342,0.0001589,2]
[390497234,1760065832606,-184.65553755,0.0001589,2]
[390497236,1760065832615,-1167.0,0.00015979,2]
[390497238,1760065832625,-276.39,0.0001598,3]
[390497240,1760065832634,-829.17,0.0001598,3]
[390497242,1760065832644,-300.0,0.00015987,2]
[390497244,1760065832653,-500.0,0.00015989,2]
[390497246,1760065832662,-500.0,0.00015989,2]
[390497248,1760065832671,-500.0,0.00015989,2]
[390497250,1760065832680,-500.0,0.00015989,2]
[390497252,1760065832689,-333.1591246,0.00015989,2]
[390497255,1760065832699,-500.0,0.00015989,2]
[390497258,1760065832709,-226.8996019,0.00015989,2]
[390497261,1760065832719,-50000.0,0.00015989,2]
[390497264,1760065832727,-96733.66653096,0.0001599,2]
[390497266,1760065832737,-3319.67918557,0.00016338,2]
[390497268,1760065832746,-10000.0,0.00016338,2]
[390497270,1760065832755,-1273.17792348,0.00016423,2]
[390497272,1760065832764,-151.0,0.00016428,2]
[390497274,1760065832774,-151.0,0.00016428,2]
[390497275,1760065832783,-151.0,0.00016428,2]
[390497277,1760065832792,-151.0,0.00016428,2]
[390497279,1760065832801,-153.13277932,0.00016428,2]
[390497281,1760065832810,-151.46746986,0.00016428,2]
[390497283,1760065832819,-250.0,0.00016428,2]
[390497285,1760065832828,-1005.04984725,0.00016428,2]
[390497287,1760065832837,-190.46748703,0.00016428,2]
[390497288,1760065832847,-250.0,0.00016428,2]
[390497290,1760065832856,-250.0,0.00016428,2]
[390497292,1760065832865,-18603.8837,0.00016428,2]
[390497294,1760065832875,-250.0,0.00016428,2]
[390497296,1760065832884,-250.0,0.00016428,2]
[390497298,1760065832894,-250.0,0.00016428,2]
[390497300,1760065832903,-251.34890312,0.00016428,2]
[390497302,1760065832912,-162.380719,0.00016428,2]
[390497304,1760065832921,-1000.0,0.00016428,2]
[390497306,1760065832930,-1000.0,0.00016428,2]
[390497308,1760065832939,-500.0,0.00016428,2]
[390497310,1760065832949,-1000.0,0.00016428,2]
[390497312,1760065832958,-250.0,0.00016428,2]
[390497314,1760065832967,-500.0,0.00016428,2]
[390497316,1760065832976,-1000.0,0.00016428,2]
[390497318,1760065832986,-250.0,0.00016428,2]
[390497320,1760065832995,-1000.0,0.00016428,2]
[390497322,1760065833004,-500.0,0.00016428,2]
[390497324,1760065833013,-250.0,0.00016428,2]
[390497326,1760065833023,-1000.0,0.00016428,2]
[390497328,1760065833032,-500.0,0.00016428,2]
[390497330,1760065833042,-162.380719,0.00016428,2]
[390497332,1760065833051,-250.92042551,0.00016428,2]
[390497334,1760065833061,-1000.0,0.00016428,2]
[390497335,1760065833070,-610.21459737,0.00016428,2]
[390497337,1760065833079,-1000.0,0.00016428,2]
[390497339,1760065833088,-1000.0,0.00016428,2]
[390497341,1760065833098,-151.14447926,0.00016428,2]
[390497343,1760065833107,-1000.0,0.00016428,2]
[390497345,1760065833117,-1000.0,0.00016428,2]
[390497347,1760065833126,-1000.0,0.00016428,2]
[390497349,1760065833135,-151.0,0.00016428,2]
[390497351,1760065833144,-1000.0,0.00016428,2]
[390497352,1760065833153,-500.0,0.00016428,2]
[390497354,1760065833162,-500.0,0.00016428,2]
[390497356,1760065833172,-211.40678993,0.00016428,2]
[390497358,1760065833180,-548.9757866,0.00016428,2]
[390497360,1760065833189,-477.53850107,0.00016428,2]
[390497362,1760065833199,-500.0,0.00016428,2]
[390497364,1760065833209,-500.0,0.00016428,2]
[390497366,1760065833218,-500.0,0.00016428,2]
[390497368,1760065833227,-500.0,0.00016428,2]
[390497370,1760065833236,-500.0,0.00016428,2]
[390497372,1760065833244,-500.0,0.00016428,2]
[390497374,1760065833254,-500.0,0.00016428,2]
[390497376,1760065833262,-483.9303675,0.00016433,2]
[390497378,1760065833271,-34769.7866145,0.00016433,2]
[390497380,1760065833281,-158.7698339,0.00016433,2]
[390497382,1760065833290,-3309.3020988,0.00016433,2]
[390497384,1760065833299,-646.8491116,0.00016433,2]
[390497386,1760065833307,-157.412,0.00016437,2]
[390497388,1760065833318,-352.88396121,0.00016437,2]
[390497390,1760065833331,-604.52095503,0.00016437,2]
[390497392,1760065833341,-160.25899395,0.00016437,2]
[390497394,1760065833351,-500.0,0.00016438,2]
[390497396,1760065833360,-500.0,0.00016438,2]
[390497398,1760065833370,-500.0,0.00016438,2]
[390497400,1760065833380,-501.84064343,0.00016438,2]
[390497402,1760065833389,-500.0,0.00016438,2]
[390497404,1760065833398,-500.0,0.00016438,2]
[390497406,1760065833408,-500.0,0.00016438,2]
[390497408,1760065833418,-500.35433438,0.00016438,2]
[390497410,1760065833427,-501.73450106,0.00016438,2]
[390497412,1760065833437,-502.36300765,0.00016438,2]
[390497414,1760065833446,-1002.87,0.00016438,2]
[390497416,1760065833456,-402.88158811,0.00016438,2]
[390497418,1760065833465,-935.77,0.00016438,2]
[390497420,1760065833475,-501.46472559,0.00016438,2]
[390497421,1760065833484,-500.0,0.00016438,2]
[390497423,1760065833493,-500.0,0.00016438,2]
[390497425,1760065833503,-500.0,0.00016438,2]
[390497427,1760065833512,-640.44137722,0.00016438,2]
[390497429,1760065833521,-500.0,0.00016438,2]
[390497431,1760065833531,-500.0,0.00016438,2]
[390497433,1760065833540,-500.0,0.00016438,2]
[390497435,1760065833549,-500.0,0.00016438,2]
[390497437,1760065833558,-500.0,0.00016438,2]
[390497439,1760065833567,-152.768655,0.00016438,2]
[390497441,1760065833576,-500.0,0.00016438,2]
[390497443,1760065833586,-296.9159667,0.00016438,2]